fUST/lending_fUST_20250625
["ID","MTS","AMOUNT","RATE_DAILY","PERIOD"]
[367536053,1750848647253,-160.0,0.00017817,2]
[367536056,1750848647272,-230.22714675,0.00017817,2]
[367536058,1750848647281,-425.18553072,0.00017817,2]
[367536060,1750848647291,-160.0,0.00017817,2]
[367536062,1750848647300,-836.86812089,0.00017817,2]
[367536064,1750848647309,-160.0,0.00017817,2]
[367536066,1750848647318,-524.21181985,0.00017817,2]
[367536068,1750848647327,-598.06,0.00017892,2]
[367536070,1750848647336,-1280.88,0.00017892,2]
[367536072,1750848647345,-1435.41,0.00017892,2]
[367536074,1750848647354,-460.0,0.00017893,2]
[367536076,1750848647364,-460.0,0.00017893,2]
[367536078,1750848647374,-460.0,0.00017893,2]
[367536080,1750848647383,-460.0,0.00017893,2]
[367536082,1750848647393,-460.0,0.00017893,2]
[367536084,1750848647404,-460.0,0.00017893,2]
[367536085,1750848647414,-460.0,0.00017893,2]
[367536088,1750848647425,-460.0,0.00017893,2]
[367536090,1750848647435,-187.20951857,0.00017893,2]
[367536092,1750848647444,-1051.9,0.00017893,2]
[367536094,1750848647454,-460.0,0.00017893,2]
[367536096,1750848647463,-460.0,0.00017893,2]
[367536097,1750848647473,-794.87,0.00017893,2]
[367536099,1750848647484,-460.0,0.00017893,2]
[367536102,1750848647493,-460.0,0.00017893,2]
[367536104,1750848647503,-460.0,0.00017893,2]
[367536105,1750848647513,-488.97,0.00017893,2]
[367536107,1750848647522,-460.0,0.00017893,2]
[367536109,1750848647531,-460.0,0.00017893,2]
[367536111,1750848647542,-1830.97,0.00017893,2]
[367536113,1750848647551,-1628.77,0.00017893,2]
[367536115,1750848647560,-460.0,0.00017893,2]
[367536117,1750848647569,-460.0,0.00017893,2]
[367536119,1750848647579,-460.0,0.00017893,2]
[367536121,1750848647588,-1518.86,0.00017893,2]
[367536123,1750848647598,-2259.55,0.00017893,2]
[367536125,1750848647607,-2573.5,0.00017893,2]
[367536127,1750848647617,-460.0,0.00017893,2]
[367536129,1750848647626,-460.0,0.00017893,2]
[367536131,1750848647635,-460.0,0.00017893,2]
[367536133,1750848647645,-460.0,0.00017893,2]
[367536135,1750848647654,-385.23,0.00017893,2]
[367536138,1750848647664,-460.0,0.00017893,2]
[367536140,1750848647674,-460.0,0.00017893,2]
[367536142,1750848647683,-253.92629083,0.00017893,2]
[367536144,1750848647693,-460.0,0.00017893,2]
[367536145,1750848647702,-460.0,0.00017893,2]
[367536147,1750848647712,-1026.89,0.00017893,2]
[367536149,1750848647722,-460.0,0.00017893,2]
[367536151,1750848647732,-931.89,0.00017893,2]
[367536153,1750848647741,-460.0,0.00017893,2]
[367536155,1750848647750,-1197.24,0.00017893,2]
[367536158,1750848647760,-341.56654318,0.00017893,2]
[367536160,1750848647770,-460.0,0.00017893,2]
[367536162,1750848647782,-460.0,0.00017893,2]
[367536164,1750848647791,-460.0,0.00017893,2]
[367536166,1750848647800,-480.47,0.00017893,2]
[367536168,1750848647809,-460.0,0.00017893,2]
[367536169,1750848647818,-722.73,0.00017893,2]
[367536171,1750848647827,-460.0,0.00017893,2]
[367536173,1750848647837,-1175.25,0.00017893,2]
[367536175,1750848647846,-460.0,0.00017893,2]
[367536177,1750848647854,-460.0,0.00017893,2]
[367536179,1750848647864,-460.0,0.00017893,2]
[367536181,1750848647873,-460.0,0.00017893,2]
[367536183,1750848647882,-1219.82,0.00017893,2]
[367536185,1750848647891,-460.0,0.00017893,2]
[367536187,1750848647901,-460.0,0.00017893,2]
[367536189,1750848647910,-460.0,0.00017893,2]
[367536191,1750848647919,-460.0,0.00017893,2]
[367536193,1750848647928,-460.0,0.00017893,2]
[367536195,1750848647937,-460.0,0.00017893,2]
[367536197,1750848647953,-460.0,0.00017893,2]
[367536199,1750848647962,-460.0,0.00017893,2]
[367536201,1750848647972,-460.0,0.00017893,2]
[367536203,1750848647981,-460.0,0.00017893,2]
[367536205,1750848647992,-460.0,0.00017893,2]
[367536207,1750848648001,-460.0,0.00017893,2]
[367536209,1750848648010,-1377.71,0.00017893,2]
[367536211,1750848648020,-207.84,0.00017893,2]
[367536213,1750848648029,-151.0,0.000179,2]
[367536215,1750848648039,-1000.0,0.00017906,2]
[367536217,1750848648048,-1000.0,0.00017906,2]
[367536219,1750848648057,-1000.0,0.00017906,2]
[367536221,1750848648066,-918.82213867,0.00017906,2]
[367536223,1750848648076,-1180.62216626,0.00017949,2]
[367536225,1750848648086,-500.0,0.00017969,2]
[367536227,1750848648095,-8194.89097519,0.00018003,2]
[367536229,1750848648104,-334.0,0.0001804,2]
[367536231,1750848648114,-500.0,0.00018068,2]
[367536233,1750848648124,-4348.54,0.00018157,3]
[367536235,1750848648133,-2174.28,0.00018157,3]
[367536237,1750848648143,-1087.14,0.00018157,3]
[367536239,1750848648152,-543.56,0.00018157,3]
[367536241,1750848648162,-316.34,0.00018157,3]
[367536243,1750848648171,-12558.06783089,0.00018157,3]
[367536245,1750848648181,-846.80634355,0.00018157,3]
[367536247,1750848648190,-213.69531788,0.00018157,3]
[367536249,1750848648199,-1271.96,0.00018157,3]
[367536251,1750848648208,-635.98,0.00018157,3]
[367536253,1750848648217,-318.0,0.00018157,3]
[367536255,1750848648227,-524.21181985,0.00018157,3]
[367536257,1750848648236,-1280.88,0.00018166,2]
[367536259,1750848648245,-1435.41,0.00018166,2]
[367536261,1750848648255,-460.0,0.00018167,2]
[367536263,1750848648264,-460.0,0.00018167,2]
[367536265,1750848648273,-432.8,0.00018167,2]
[367536267,1750848648282,-234.67,0.00018167,2]
[367536269,1750848648291,-444.37,0.00018167,2]
[367536271,1750848648301,-1051.9,0.00018167,2]
[367536273,1750848648310,-460.0,0.00018167,2]
[367536275,1750848648319,-794.87,0.00018167,2]
[367536277,1750848648329,-460.0,0.00018167,2]
[367536279,1750848648338,-460.0,0.00018167,2]
[367536281,1750848648347,-488.97,0.00018167,2]
[367536283,1750848648356,-460.0,0.00018167,2]
[367536285,1750848648365,-1830.97,0.00018167,2]
[367536287,1750848648375,-1628.77,0.00018167,2]
[367536289,1750848648384,-460.0,0.00018167,2]
[367536291,1750848648393,-460.0,0.00018167,2]
[367536293,1750848648402,-460.0,0.00018167,2]
[367536295,1750848648412,-1518.86,0.00018167,2]
[367536297,1750848648421,-2259.55,0.00018167,2]
[367536299,1750848648431,-2573.5,0.00018167,2]
[367536301,1750848648440,-460.0,0.00018167,2]
[367536303,1750848648450,-460.0,0.00018167,2]
[367536305,1750848648460,-460.0,0.00018167,2]
[367536307,1750848648469,-460.0,0.00018167,2]
[367536309,1750848648478,-383.44590857,0.00018167,2]
[367536311,1750848648488,-303.66,0.00018167,2]
[367536313,1750848648497,-460.0,0.00018167,2]
[367536315,1750848648506,-1026.89,0.00018167,2]
[367536317,1750848648516,-460.0,0.00018167,2]
[367536319,1750848648525,-931.89,0.00018167,2]
[367536321,1750848648535,-460.0,0.00018167,2]
[367536323,1750848648544,-1197.24,0.00018167,2]
[367536325,1750848648553,-460.0,0.00018167,2]
[367536327,1750848648563,-480.47,0.00018167,2]
[367536329,1750848648573,-460.0,0.00018167,2]
[367536331,1750848648582,-722.73,0.00018167,2]
[367536333,1750848648591,-196.86,0.00018167,2]
[367536335,1750848648601,-1175.25,0.00018167,2]
[367536337,1750848648611,-460.0,0.00018167,2]
[367536339,1750848648620,-460.0,0.00018167,2]
[367536340,1750848648629,-460.0,0.00018167,2]
[367536341,1750848648638,-460.0,0.00018167,2]
[367536342,1750848648648,-1219.82,0.00018167,2]
[367536343,1750848648657,-460.0,0.00018167,2]
[367536344,1750848648666,-460.0,0.00018167,2]
[367536345,1750848648675,-460.0,0.00018167,2]
[367536346,1750848648684,-460.0,0.00018167,2]
[367536347,1750848648694,-568.06,0.00018167,2]
[367536348,1750848648703,-460.0,0.00018167,2]
[367536349,1750848648712,-460.0,0.00018167,2]
[367536350,1750848648722,-460.0,0.00018167,2]
[367536351,1750848648731,-460.0,0.00018167,2]
[367536352,1750848648741,-460.0,0.00018167,2]
[367536353,1750848648750,-1377.71,0.00018167,2]
[367536354,1750848648759,-207.4,0.0001817,2]
[367536355,1750848648768,-5000.0,0.0001817,2]
[367536357,1750848648777,-500.0,0.0001817,2]
[367536359,1750848648787,-255.74462248,0.0001817,2]
[367536361,1750848648796,-500.0,0.0001817,2]
[367536363,1750848648806,-500.0,0.0001817,2]
[367536365,1750848648815,-500.0,0.0001817,2]
[367536367,1750848648825,-500.0,0.0001817,2]
[367536369,1750848648834,-500.0,0.0001817,2]
[367536371,1750848648844,-500.0,0.0001817,2]
[367536373,1750848648854,-500.0,0.0001817,2]
[367536375,1750848648864,-500.0,0.0001817,2]
[367536377,1750848648873,-500.0,0.0001817,2]
[367536379,1750848648883,-500.0,0.0001817,2]
[367536381,1750848648892,-500.0,0.0001817,2]
[367536383,1750848648902,-500.0,0.0001817,2]
[367536385,1750848648911,-500.0,0.0001817,2]
[367536387,1750848648924,-500.0,0.0001817,2]
[367536389,1750848648933,-500.0,0.0001817,2]
[367536391,1750848648946,-500.0,0.0001817,2]
[367536393,1750848648956,-500.0,0.0001817,2]
[367536395,1750848648966,-500.0,0.0001817,2]
[367536397,1750848648975,-500.0,0.0001817,2]
[367536399,1750848648985,-500.0,0.0001817,2]
[367536401,1750848648995,-500.0,0.0001817,2]
[367536403,1750848649005,-500.0,0.0001817,2]
[367536405,1750848649014,-500.0,0.0001817,2]
[367536407,1750848649023,-500.0,0.0001817,2]
[367536409,1750848649033,-500.0,0.0001817,2]
[367536411,1750848649044,-500.0,0.0001817,2]
[367536413,1750848649053,-500.0,0.0001817,2]
[367536415,1750848649063,-500.0,0.0001817,2]
[367536417,1750848649072,-500.0,0.0001817,2]
[367536419,1750848649081,-500.0,0.0001817,2]
[367536421,1750848649091,-500.0,0.0001817,2]
[367536423,1750848649100,-500.0,0.0001817,2]
[367536425,1750848649110,-500.0,0.0001817,2]
[367536427,1750848649119,-500.0,0.0001817,2]
[367536429,1750848649128,-500.0,0.0001817,2]
[367536431,1750848649137,-584.53558699,0.0001817,2]
[367536433,1750848649147,-25000.0,0.0001817,2]
[367536435,1750848649156,-415.0,0.00018195,2]
[367536437,1750848649169,-9042.03308102,0.000182,2]
[367536439,1750848649179,-151.0,0.000182,2]
[367536441,1750848649188,-2910.0,0.0001825,2]
[367536443,1750848649198,-2910.0,0.00018251,2]
[367536445,1750848649208,-151.0,0.00018279,2]
[367536447,1750848649217,-151.0,0.00018279,2]
[367536449,1750848649226,-8194.89097519,0.00018279,2]
[367536451,1750848649236,-420.0,0.00018337,2]
[367536453,1750848649246,-1680.0,0.00018338,2]
[367536455,1750848649256,-180.0,0.000184,2]
[367536457,1750848649265,-480.0,0.00018429,2]
[367536459,1750848649274,-1280.88,0.0001844,2]
[367536461,1750848649284,-1435.41,0.0001844,2]
[367536463,1750848649293,-460.0,0.00018441,2]
[367536465,1750848649303,-262.9,0.00018441,2]
[367536467,1750848649312,-1051.9,0.00018441,2]
[367536469,1750848649321,-460.0,0.00018441,2]
[367536471,1750848649330,-794.87,0.00018441,2]
[367536473,1750848649340,-225.65,0.00018441,2]
[367536475,1750848649349,-460.0,0.00018441,2]
[367536477,1750848649358,-488.97,0.00018441,2]
[367536478,1750848649367,-460.0,0.00018441,2]
[367536479,1750848649376,-1830.97,0.00018441,2]
[367536480,1750848649385,-1628.77,0.00018441,2]
[367536481,1750848649395,-460.0,0.00018441,2]
[367536482,1750848649404,-460.0,0.00018441,2]
[367536483,1750848649417,-460.0,0.00018441,2]
[367536484,1750848649426,-1518.86,0.00018441,2]
[367536485,1750848649435,-2259.55,0.00018441,2]
[367536486,1750848649444,-2573.5,0.00018441,2]
[367536487,1750848649454,-445.62,0.00018441,2]
[367536488,1750848649463,-460.0,0.00018441,2]
[367536489,1750848649472,-342.24,0.00018441,2]
[367536490,1750848649482,-460.0,0.00018441,2]
[367536491,1750848649492,-460.0,0.00018441,2]
[367536492,1750848649501,-1026.89,0.00018441,2]
[367536493,1750848649510,-460.0,0.00018441,2]
[367536494,1750848649520,-931.89,0.00018441,2]
[367536495,1750848649529,-460.0,0.00018441,2]
[367536496,1750848649539,-1197.24,0.00018441,2]
[367536497,1750848649549,-445.44968143,0.00018441,2]
[367536498,1750848649559,-480.47,0.00018441,2]
[367536499,1750848649569,-460.0,0.00018441,2]
[367536500,1750848649578,-722.73,0.00018441,2]
[367536501,1750848649587,-1175.25,0.00018441,2]
[367536502,1750848649596,-460.0,0.00018441,2]
[367536503,1750848649606,-460.0,0.00018441,2]
[367536504,1750848649615,-460.0,0.00018441,2]
[367536505,1750848649625,-460.0,0.00018441,2]
[367536506,1750848649635,-1219.82,0.00018441,2]
[367536507,1750848649644,-460.0,0.00018441,2]
[367536508,1750848649654,-196.8,0.00018441,2]
[367536509,1750848649665,-460.0,0.00018441,2]
[367536510,1750848649674,-157.89,0.00018441,2]
[367536511,1750848649683,-460.0,0.00018441,2]
[367536512,1750848649692,-460.0,0.00018441,2]
[367536513,1750848649702,-460.0,0.00018441,2]
[367536514,1750848649711,-460.0,0.00018441,2]
[367536515,1750848649722,-460.0,0.00018441,2]
[367536516,1750848649731,-1377.71,0.00018441,2]
[367536517,1750848649741,-1500.0,0.00018453,2]
[367536518,1750848649751,-151.0,0.000185,2]
[367536519,1750848649761,-8194.89097519,0.00018555,2]
[367536520,1750848649770,-1180.62216626,0.00018574,2]
[367536521,1750848649780,-2910.0,0.00018691,2]
[367536522,1750848649788,-780.37331766,0.00018713,2]
[367536523,1750848649798,-1280.88,0.00018714,2]
[367536524,1750848649807,-1435.41,0.00018714,2]
[367536525,1750848649817,-460.0,0.00018715,2]
[367536526,1750848649826,-1051.9,0.00018715,2]
[367536527,1750848649835,-460.0,0.00018715,2]
[367536528,1750848649844,-794.87,0.00018715,2]
[367536529,1750848649854,-460.0,0.00018715,2]
[367536530,1750848649863,-488.97,0.00018715,2]
[367536531,1750848649872,-460.0,0.00018715,2]
[367536532,1750848649881,-1830.97,0.00018715,2]
[367536533,1750848649890,-1628.77,0.00018715,2]
[367536534,1750848649900,-460.0,0.00018715,2]
[367536535,1750848649910,-460.0,0.00018715,2]
[367536536,1750848649921,-460.0,0.00018715,2]
[367536537,1750848649931,-1518.86,0.00018715,2]
[367536538,1750848649940,-2259.55,0.00018715,2]
[367536539,1750848649954,-2573.5,0.00018715,2]
[367536540,1750848649964,-422.29500605,0.00018715,2]
[367536541,1750848649974,-460.0,0.00018715,2]
[367536542,1750848649983,-1026.89,0.00018715,2]
[367536543,1750848649994,-460.0,0.00018715,2]
[367536544,1750848650004,-460.0,0.00018715,2]
[367536545,1750848650013,-931.89,0.00018715,2]
[367536546,1750848650025,-460.0,0.00018715,2]
[367536547,1750848650034,-1197.24,0.00018715,2]
[367536548,1750848650044,-480.47,0.00018715,2]
[367536549,1750848650054,-460.0,0.00018715,2]
[367536550,1750848650064,-151.0,0.00018715,2]
[367536551,1750848650074,-722.73,0.00018715,2]
[367536552,1750848650084,-1175.25,0.00018715,2]
[367536553,1750848650093,-464.53,0.00018715,2]
[367536554,1750848650102,-460.0,0.00018715,2]
[367536555,1750848650112,-460.0,0.00018715,2]
[367536556,1750848650121,-230.23,0.00018715,2]
[367536557,1750848650131,-1219.82,0.00018715,2]
[367536558,1750848650141,-460.0,0.00018715,2]
[367536559,1750848650151,-376.97363728,0.00018715,2]
[367536560,1750848650161,-460.0,0.00018715,2]
[367536561,1750848650171,-460.0,0.00018715,2]
[367536562,1750848650181,-343.53815493,0.00018715,2]
[367536563,1750848650190,-199.13256347,0.00018715,2]
[367536564,1750848650200,-395.27,0.00018715,2]
[367536565,1750848650209,-1377.71,0.00018715,2]
[367536566,1750848650218,-5000.0,0.00018718,2]
[367536567,1750848650228,-25000.0,0.00018718,2]
[367536568,1750848650238,-151.0,0.000188,2]
[367536569,1750848650248,-8194.89097519,0.00018831,2]
[367536570,1750848650257,-968.292,0.0001889,2]
[367536571,1750848650383,-2345.3416182,0.000189,2]
[367536572,1750848650398,-1280.88,0.00018988,2]
[367536573,1750848650407,-1435.41,0.00018988,2]
[367536574,1750848650417,-460.0,0.00018989,2]
[367536575,1750848650426,-151.0,0.00018989,2]
[367536576,1750848650436,-1051.9,0.00018989,2]
[367536577,1750848650445,-247.68,0.00018989,2]
[367536578,1750848650454,-151.0,0.00018989,2]
[367536579,1750848650463,-794.87,0.00018989,2]
[367536580,1750848650472,-460.0,0.00018989,2]
[367536581,1750848650483,-488.97,0.00018989,2]
[367536582,1750848650492,-460.0,0.00018989,2]
[367536583,1750848650502,-1830.97,0.00018989,2]
[367536584,1750848650511,-1628.77,0.00018989,2]
[367536585,1750848650520,-460.0,0.00018989,2]
[367536586,1750848650529,-460.0,0.00018989,2]
[367536587,1750848650539,-460.0,0.00018989,2]
[367536588,1750848650549,-1518.86,0.00018989,2]
[367536589,1750848650558,-2259.55,0.00018989,2]
[367536590,1750848650568,-2573.5,0.00018989,2]
[367536591,1750848650577,-460.0,0.00018989,2]
[367536592,1750848650587,-1026.89,0.00018989,2]
[367536593,1750848650597,-460.0,0.00018989,2]
[367536594,1750848650607,-460.0,0.00018989,2]
[367536595,1750848650616,-931.89,0.00018989,2]
[367536596,1750848650626,-460.0,0.00018989,2]
[367536597,1750848650636,-1197.24,0.00018989,2]
[367536598,1750848650645,-480.47,0.00018989,2]
[367536599,1750848650655,-460.0,0.00018989,2]
[367536600,1750848650665,-722.73,0.00018989,2]
[367536601,1750848650674,-1175.25,0.00018989,2]
[367536602,1750848650684,-460.0,0.00018989,2]
[367536603,1750848650694,-151.0,0.00018989,2]
[367536604,1750848650703,-460.0,0.00018989,2]
[367536605,1750848650713,-151.0,0.00018989,2]
[367536606,1750848650723,-1219.82,0.00018989,2]
[367536607,1750848650733,-1787.628858,0.00018989,2]
[367536608,1750848650743,-460.0,0.00018989,2]
[367536609,1750848650753,-1787.628858,0.00018989,2]
[367536610,1750848650764,-420.62,0.00018989,2]
[367536611,1750848650774,-460.0,0.00018989,2]
[367536612,1750848650784,-1377.71,0.00018989,2]
[367536613,1750848650794,-151.0,0.00019,2]
[367536614,1750848650804,-615.0,0.00019,2]
[367536615,1750848650813,-2000.0,0.00019001,2]
[367536616,1750848650823,-615.0,0.00019034,2]
[367536617,1750848650833,-2910.0,0.00019053,2]
[367536618,1750848650843,-800.0,0.00019076,2]
[367536619,1750848650853,-8194.89097519,0.00019107,2]
[367536620,1750848650862,-151.0,0.00019107,2]
[367536621,1750848650871,-151.0,0.00019107,2]
[367536622,1750848650881,-2011.50468,0.00019145,2]
[367536623,1750848650890,-388.9,0.00019152,2]
[367536624,1750848650900,-615.0,0.00019153,2]
[367536625,1750848650913,-415.378011,0.00019178,2]
[367536626,1750848650923,-1180.62216626,0.000192,2]
[367536627,1750848650933,-615.0,0.00019218,2]
[367536628,1750848650942,-1280.88,0.00019262,2]
[367536629,1750848650952,-1435.41,0.00019262,2]
[367536630,1750848650961,-151.0,0.00019263,2]
[367536631,1750848650970,-151.0,0.00019263,2]
[367536632,1750848650982,-252.221827,0.00019263,2]
[367536633,1750848650992,-252.221827,0.00019263,2]
[367536634,1750848651001,-209.161883,0.00019263,2]
[367536635,1750848651012,-209.161883,0.00019263,2]
[367536636,1750848651022,-151.0,0.00019263,2]
[367536637,1750848651032,-298.526827,0.00019263,2]
[367536638,1750848651042,-151.0,0.00019263,2]
[367536639,1750848651052,-460.0,0.00019263,2]
[367536640,1750848651061,-153.488293,0.00019263,2]
[367536641,1750848651071,-151.0,0.00019263,2]
[367536642,1750848651080,-151.0,0.00019263,2]
[367536643,1750848651090,-151.0,0.00019263,2]
[367536644,1750848651099,-328.457726,0.00019263,2]
[367536645,1750848651109,-1051.9,0.00019263,2]
[367536646,1750848651119,-328.457726,0.00019263,2]
[367536647,1750848651129,-303.451845,0.00019263,2]
[367536648,1750848651138,-303.451845,0.00019263,2]
[367536649,1750848651148,-794.87,0.00019263,2]
[367536650,1750848651158,-460.0,0.00019263,2]
[367536651,1750848651167,-488.97,0.00019263,2]
[367536652,1750848651177,-460.0,0.00019263,2]
[367536653,1750848651186,-1830.97,0.00019263,2]
[367536654,1750848651195,-1628.77,0.00019263,2]
[367536655,1750848651204,-460.0,0.00019263,2]
[367536656,1750848651214,-460.0,0.00019263,2]
[367536657,1750848651223,-460.0,0.00019263,2]
[367536658,1750848651232,-1518.86,0.00019263,2]
[367536659,1750848651242,-2259.55,0.00019263,2]
[367536660,1750848651251,-2573.5,0.00019263,2]
[367536661,1750848651260,-460.0,0.00019263,2]
[367536662,1750848651269,-1026.89,0.00019263,2]
[367536663,1750848651279,-460.0,0.00019263,2]
[367536664,1750848651288,-460.0,0.00019263,2]
[367536665,1750848651298,-931.89,0.00019263,2]
[367536666,1750848651307,-460.0,0.00019263,2]
[367536667,1750848651317,-1197.24,0.00019263,2]
[367536668,1750848651326,-480.47,0.00019263,2]
[367536669,1750848651336,-460.0,0.00019263,2]
[367536670,1750848651345,-722.73,0.00019263,2]
[367536671,1750848651355,-1175.25,0.00019263,2]
[367536672,1750848651365,-285.04145175,0.00019263,2]
[367536673,1750848651375,-460.0,0.00019263,2]
[367536674,1750848651384,-1219.82,0.00019263,2]
[367536675,1750848651393,-460.0,0.00019263,2]
[367536676,1750848651403,-151.0,0.00019263,2]
[367536677,1750848651412,-460.0,0.00019263,2]
[367536678,1750848651422,-151.0,0.00019263,2]
[367536679,1750848651432,-151.0,0.00019263,2]
[367536680,1750848651448,-1377.71,0.00019263,2]
[367536681,1750848651458,-151.904109,0.00019266,2]
[367536682,1750848651468,-151.904109,0.00019266,2]
[367536683,1750848651478,-151.0,0.00019266,2]
[367536684,1750848651487,-151.986188,0.00019266,2]
[367536685,1750848651497,-151.0,0.00019266,2]
[367536686,1750848651507,-188.468815,0.00019266,2]
[367536687,1750848651516,-151.0,0.00019266,2]
[367536688,1750848651526,-5000.0,0.00019266,2]
[367536689,1750848651535,-25000.0,0.00019266,2]
[367536690,1750848651545,-151.0,0.000193,2]
[367536691,1750848651555,-151.0,0.000193,2]
[367536692,1750848651564,-151.0,0.00019329,2]
[367536693,1750848651574,-152.979448,0.00019329,2]
[367536694,1750848651583,-252.221827,0.00019329,2]
[367536695,1750848651592,-252.221827,0.00019329,2]
[367536696,1750848651602,-209.161883,0.00019329,2]
[367536697,1750848651611,-209.161883,0.00019329,2]
[367536698,1750848651620,-151.0,0.00019329,2]
[367536699,1750848651630,-151.904109,0.00019329,2]
[367536700,1750848651639,-151.904109,0.00019329,2]
[367536701,1750848651649,-151.0,0.00019329,2]
[367536702,1750848651658,-298.526827,0.00019329,2]
[367536703,1750848651668,-151.0,0.00019329,2]
[367536704,1750848651678,-301.65031367,0.00019329,2]
[367536705,1750848651687,-151.0,0.00019329,2]
[367536706,1750848651697,-151.0,0.00019329,2]
[367536707,1750848651706,-151.0,0.00019329,2]
[367536708,1750848651715,-151.0,0.00019329,2]
[367536709,1750848651724,-151.0,0.00019329,2]
[367536710,1750848651734,-1787.628858,0.00019329,2]
[367536711,1750848651744,-1787.628858,0.00019329,2]
[367536712,1750848651754,-19991.18975364,0.00019329,2]
[367536713,1750848651898,-9323.28614455,0.00019329,2]
[367536714,1750848651909,-2467.80359134,0.00019329,2]
[367536715,1750848652020,164.765076,0.00013699,2]
[367536716,1750848652071,-5000.0,0.00016629,2]
[367536717,1750848652082,-460.0,0.00016797,2]
[367536718,1750848652091,-2158.98937821,0.00019329,2]
[367536719,1750848652102,-2513.15306016,0.00019329,2]
[367536720,1750848652114,-29055.26806003,0.00019329,2]
[367536721,1750848652125,-1705.85489733,0.00019329,2]
[367536722,1750848652140,-32784.45511474,0.00019329,2]
[367536723,1750848652149,-174.60586706,0.00019342,2]
[367536724,1750848652158,-151.0,0.00019342,2]
[367536725,1750848652169,-151.0,0.00019342,2]
[367536726,1750848652178,-153.51658329,0.00019342,2]
[367536727,1750848652187,-151.0,0.00019342,2]
[367536728,1750848652196,-152.11660757,0.00019342,2]
[367536729,1750848652206,-151.0,0.00019342,2]
[367536730,1750848652216,-151.0,0.00019342,2]
[367536731,1750848652226,-151.0,0.00019342,2]
[367536732,1750848652236,-272.78501,0.00019348,2]
[367536733,1750848652245,-151.0,0.00019348,2]
[367536734,1750848652254,-242.364979,0.00019348,2]
[367536735,1750848652263,-151.0,0.00019369,2]
[367536736,1750848652273,-152.35758435,0.00019369,2]
[367536737,1750848652283,-8194.89097519,0.00019383,2]
[367536738,1750848652292,-151.0,0.00019397,2]
[367536739,1750848652301,-4350.0,0.000194,2]
[367536740,1750848652310,-388.9,0.0001941,3]
[367536741,1750848652319,-151.0,0.00019424,2]
[367536742,1750848652329,-615.0,0.00019438,2]
[367536743,1750848652338,-151.0,0.00019452,2]
[367536744,1750848652347,-245.0,0.00019479,2]
[367536745,1750848652357,-965.0,0.00019518,2]
[367536746,1750848652366,-654.0,0.00019518,2]
[367536747,1750848652376,-2161.0,0.00019518,2]
[367536748,1750848652385,-406.0,0.00019518,2]
[367536749,1750848652394,-406.0,0.00019518,2]
[367536750,1750848652403,-615.0,0.00019527,2]
[367536751,1750848652412,-43847.30131733,0.00019536,2]
[367536752,1750848652666,-460.0,0.00016796,2]
[367536753,1750848652676,-258.89390562,0.00016797,2]
[367536754,1750848652688,-201.10609438,0.00016797,2]
[367536755,1750848652698,-151.0,0.00018279,2]
[367536756,1750848652707,-151.0,0.00019107,2]